bitfinex/quotes_BTCUSD_20250316
["timestamp","ask_amount","ask_price","bid_price","bid_amount"]
[1742159504802,0.11767496,83166.0,83165.0,0.0001693]
[1742159504997,0.11967496,83166.0,83165.0,0.0001693]
[1742159505531,0.1667782,83166.0,83165.0,0.0001693]
[1742159505773,0.5503818,83166.0,83165.0,0.0001693]
[1742159505996,0.54887856,83166.0,83165.0,0.0001693]
[1742159506197,0.54787856,83166.0,83165.0,0.0001693]
[1742159506529,0.54987856,83166.0,83165.0,0.0001693]
[1742159507332,0.56872569,83166.0,83165.0,0.0001693]
[1742159508392,0.54987856,83166.0,83165.0,0.0001693]
[1742159511770,0.70476545,83166.0,83165.0,0.0001693]
[1742159512958,0.56872545,83166.0,83165.0,0.0001693]
[1742159513139,0.41287742,83166.0,83165.0,0.0001693]
[1742159513961,0.43010145,83166.0,83165.0,0.0121933]
[1742159514380,0.43010145,83166.0,83165.0,0.0001693]
[1742159514594,0.42367452,83166.0,83165.0,0.0001693]
[1742159514795,0.43008454,83166.0,83165.0,0.0001693]
[1742159516705,0.42808454,83166.0,83165.0,0.0001693]
[1742159516850,0.42608454,83166.0,83165.0,0.0001693]
[1742159517065,0.40723765,83166.0,83165.0,0.0001693]
[1742159518264,0.40723765,83166.0,83165.0,0.1925573]
[1742159518451,0.40723765,83166.0,83165.0,0.0001693]
[1742159518662,0.39001362,83166.0,83165.0,0.0001693]
[1742159518869,0.40723765,83166.0,83165.0,0.0001693]
[1742159519277,0.39001362,83166.0,83165.0,0.0001693]
[1742159519482,0.40723765,83166.0,83165.0,0.0001693]
[1742159520503,0.42608341,83166.0,83165.0,0.0001693]
[1742159522050,0.42608341,83166.0,83165.0,0.1925573]
[1742159522875,0.42608341,83166.0,83165.0,0.0001693]
[1742159532175,0.43810741,83166.0,83165.0,0.0001693]
[1742159533328,0.51680741,83166.0,83165.0,0.0001693]
[1742159533762,0.49796165,83166.0,83165.0,0.0001693]
[1742159534290,0.54436165,83166.0,83165.0,0.0001693]
[1742159534764,0.54636165,83166.0,83165.0,0.0001693]
[1742159535517,0.54836165,83166.0,83165.0,0.0001693]
[1742159535847,0.41123765,83166.0,83165.0,0.0001693]
[1742159536748,0.39201362,83166.0,83165.0,0.0121933]
[1742159536950,0.42608341,83166.0,83165.0,0.0121933]
[1742159537577,0.42608341,83166.0,83165.0,1.5121933]
[1742159537945,0.40082763,83166.0,83165.0,1.5121933]
[1742159539001,0.40723163,83166.0,83165.0,1.5001693]
[1742159539207,0.41925563,83166.0,83165.0,1.5001693]
[1742159539403,0.41925563,83166.0,83165.0,0.0001693]
[1742159539610,0.40723163,83166.0,83165.0,0.0001693]
[1742159540405,0.41925563,83166.0,83165.0,0.0001693]
[1742159541412,0.43810163,83166.0,83165.0,0.0001693]
[1742159542783,0.43910163,83166.0,83165.0,0.0001693]
[1742159544116,0.44010163,83166.0,83165.0,0.0001693]
[1742159544712,0.51550163,83166.0,83165.0,0.0001693]
[1742159545269,0.62066342,83166.0,83165.0,0.0001693]
[1742159545465,0.51550163,83166.0,83165.0,0.0001693]
[1742159545688,0.51450163,83166.0,83165.0,0.0001693]
[1742159546041,0.51650163,83166.0,83165.0,0.0001693]
[1742159546226,0.51550163,83166.0,83165.0,0.0001693]
[1742159546435,0.49765563,83166.0,83165.0,0.0001693]
[1742159549631,0.83253329,83166.0,83165.0,0.0001693]
[1742159550308,0.81650434,83166.0,83165.0,0.0001693]
[1742159550484,0.86640434,83166.0,83165.0,0.0001693]
[1742159550664,0.84655563,83166.0,83165.0,0.0001693]
[1742159551102,0.85155563,83166.0,83165.0,0.0001693]
[1742159551493,0.84955563,83166.0,83165.0,0.0001693]
[1742159552008,0.85455563,83166.0,83165.0,0.0001693]
[1742159554404,0.97009303,83163.0,83162.0,0.0003382]
[1742159554613,0.95749303,83163.0,83162.0,0.0003382]
[1742159554836,0.96388058,83163.0,83162.0,0.0003382]
[1742159555040,0.98273066,83163.0,83162.0,0.0003382]
[1742159555838,0.98673066,83163.0,83162.0,0.0003382]
[1742159556019,0.99073066,83163.0,83162.0,0.0003382]
[1742159557684,1.03933066,83163.0,83162.0,0.0003382]
[1742159557895,1.02048058,83163.0,83162.0,0.0003382]
[1742159558349,1.04417095,83163.0,83162.0,0.0003382]
[1742159559027,1.04370949,83163.0,83162.0,0.0003382]
[1742159560262,0.012025,83158.0,83157.0,0.0001695]
[1742159560471,0.03713171,83158.0,83157.0,0.0001695]
[1742159561218,0.05598205,83158.0,83157.0,0.0001695]
[1742159561556,0.05598205,83158.0,83157.0,0.00058095]
[1742159561557,0.02898205,83158.0,83157.0,0.00058095]
[1742159561959,0.02987452,83158.0,83157.0,0.00058095]
[1742159562615,0.04189952,83158.0,83157.0,0.00058095]
[1742159562757,0.04489952,83158.0,83157.0,0.00058095]
[1742159566167,0.71505186,83158.0,83157.0,0.00058095]
[1742159566350,0.71415939,83158.0,83157.0,0.00058095]
[1742159567136,0.69530905,83158.0,83157.0,0.00058095]
[1742159570442,0.71415935,83158.0,83157.0,0.00058095]
[1742159570775,0.71449775,83158.0,83157.0,0.00058095]
[1742159572013,0.71449775,83158.0,83157.0,0.03058095]
[1742159573256,0.79689775,83158.0,83157.0,0.03058095]
[1742159581868,0.40172015,83158.0,83157.0,0.03058095]
[1742159582145,0.38362245,83158.0,83157.0,0.03058095]
[1742159582446,0.57602645,83158.0,83157.0,0.03058095]
[1742159582771,0.38362245,83158.0,83157.0,0.03058095]
[1742159582964,0.38286985,83158.0,83157.0,0.22298795]
[1742159583170,0.38362245,83158.0,83157.0,0.03058095]
[1742159583730,0.38286985,83158.0,83157.0,0.03058095]
[1742159583914,0.38362245,83158.0,83157.0,0.03058095]
[1742159585008,0.38286985,83158.0,83157.0,0.03058095]
[1742159585346,0.40247092,83158.0,83157.0,0.03058095]
[1742159585506,0.40171832,83158.0,83157.0,0.03058095]
[1742159585709,0.40247092,83158.0,83157.0,0.03058095]
[1742159586293,0.41449592,83158.0,83157.0,0.03058095]
[1742159586499,0.38362245,83158.0,83157.0,0.03058095]
[1742159589005,0.38286985,83158.0,83157.0,0.04260595]
[1742159589183,0.38286985,83158.0,83157.0,0.36491295]
[1742159589537,0.38286985,83158.0,83157.0,1.86491295]
[1742159589538,0.01271751,83158.0,83157.0,1.86491295]
[1742159589769,0.0063384,83158.0,83157.0,1.86491295]
[1742159590176,0.0033384,83158.0,83157.0,1.86491295]
[1742159590371,0.0053384,83158.0,83157.0,1.86491295]
[1742159590948,0.0003384,83158.0,83157.0,1.86491295]
[1742159591274,0.0033384,83158.0,83157.0,1.86491295]
[1742159591857,0.0043384,83158.0,83157.0,1.86491295]
[1742159592059,0.005091,83158.0,83157.0,1.86491295]
[1742159592324,0.0043384,83158.0,83157.0,1.86491295]
[1742159592495,0.005091,83158.0,83157.0,1.86491295]
[1742159592704,0.0043384,83158.0,83157.0,1.86491295]
[1742159592879,0.0043384,83158.0,83157.0,0.36491295]
[1742159593283,0.005091,83158.0,83157.0,1.86491295]
[1742159593444,0.0043384,83158.0,83157.0,1.86491295]
[1742159593645,0.005091,83158.0,83157.0,1.86491295]
[1742159593844,0.0043384,83158.0,83157.0,1.86491295]
[1742159594127,0.005091,83158.0,83157.0,1.86491295]
[1742159595047,0.005091,83158.0,83157.0,0.28301295]
[1742159595251,0.005091,83158.0,83157.0,0.03058095]
[1742159595252,0.017116,83158.0,83157.0,0.03058095]
[1742159595516,0.02353427,83158.0,83157.0,0.03058095]
[1742159596363,0.0353272,83158.0,83157.0,0.03058095]
[1742159596562,0.1117272,83158.0,83157.0,0.03058095]
[1742159600177,0.0353272,83158.0,83157.0,0.03058095]
[1742159600351,0.02353427,83158.0,83157.0,0.03058095]
[1742159601601,0.39368661,83158.0,83157.0,0.03058095]
[1742159601774,0.41253506,83158.0,83157.0,0.03058095]
[1742159607188,0.39368661,83158.0,83157.0,0.03058095]
[1742159610495,0.41253517,83158.0,83157.0,0.03058095]
[1742159611618,0.39368661,83158.0,83157.0,0.03058095]
[1742159613675,0.38166161,83158.0,83157.0,0.03058095]
[1742159614556,0.40051,83158.0,83157.0,0.03058095]
[1742159616397,0.412535,83158.0,83157.0,0.03058095]
[1742159622238,0.40051,83158.0,83157.0,0.03058095]
[1742159623029,0.412535,83158.0,83157.0,0.03058095]
[1742159623698,0.493335,83158.0,83157.0,0.03058095]
[1742159623864,0.541535,83158.0,83157.0,0.03058095]
[1742159624070,0.82268661,83158.0,83157.0,0.03058095]
[1742159625297,0.94426164,83158.0,83157.0,9.5e-07]
[1742159625529,0.82868661,83158.0,83157.0,9.5e-07]
[1742159625743,0.84853875,83158.0,83157.0,9.5e-07]
[1742159626143,0.85353875,83158.0,83157.0,9.5e-07]
[1742159626343,0.85253875,83158.0,83157.0,9.5e-07]
[1742159626565,0.85653875,83158.0,83157.0,9.5e-07]
[1742159627237,0.85253875,83158.0,83157.0,9.5e-07]
[1742159627358,0.87639092,83158.0,83157.0,9.5e-07]
[1742159627558,0.87139092,83158.0,83157.0,9.5e-07]
[1742159627758,0.2052166,83144.0,83133.0,0.0001693]
[1742159627960,1.08757096,83144.0,83133.0,0.0001693]
[1742159628155,1.09780737,83144.0,83133.0,0.0001693]
[1742159629352,1.10080737,83144.0,83133.0,0.0001693]
[1742159629931,1.10380737,83144.0,83133.0,0.0001693]
[1742159630435,1.09580737,83144.0,83133.0,0.0001693]
[1742159630656,1.10080737,83144.0,83133.0,0.0001693]
[1742159630791,1.10380737,83144.0,83133.0,0.0001693]
[1742159631787,1.12266225,83144.0,83133.0,0.0001693]
[1742159632345,1.11966225,83144.0,83133.0,0.0001693]
[1742159632885,1.10480737,83144.0,83133.0,0.0001693]
[1742159633578,0.0127806,83135.0,83133.0,0.0001693]
[1742159633760,0.0127806,83135.0,83134.0,0.00020345]
[1742159634153,0.01890837,83135.0,83134.0,0.00020345]
[1742159634557,0.01980084,83135.0,83134.0,0.00020345]
[1742159635123,0.02080084,83135.0,83134.0,0.00020345]
[1742159636488,0.02180084,83135.0,83134.0,0.00020345]
[1742159636846,0.09820084,83135.0,83134.0,0.00020345]
[1742159637207,0.11705612,83135.0,83134.0,0.00020345]
[1742159637963,0.16575612,83135.0,83134.0,0.00020345]
[1742159638166,0.16475612,83135.0,83134.0,0.00020345]
[1742159638315,0.46475612,83135.0,83134.0,0.00020345]
[1742159638515,0.44600837,83135.0,83134.0,0.00020345]
[1742159638921,0.44500837,83135.0,83134.0,0.00020345]
[1742159639281,0.44900837,83135.0,83134.0,0.00020345]
[1742159639486,0.81802096,83135.0,83134.0,0.00020345]
[1742159639689,0.81702096,83135.0,83134.0,0.00020345]
[1742159639947,0.82002096,83135.0,83134.0,0.00020345]
[1742159641336,0.82002096,83135.0,83134.0,0.00037265]
[1742159643432,0.82002096,83135.0,83134.0,0.00037265]
[1742159644725,0.82002096,83135.0,83134.0,0.04037265]
[1742159645703,0.83887745,83135.0,83134.0,0.04037265]
[1742159651216,0.0127836,83117.0,83116.0,0.0001693]
[1742159651416,0.53375324,83117.0,83116.0,0.0001693]
[1742159651630,0.53985104,83117.0,83116.0,0.0001693]
[1742159652051,0.85870958,83117.0,83116.0,0.0001693]
[1742159652232,0.85201498,83117.0,83116.0,0.0001693]
[1742159653460,0.85501498,83117.0,83116.0,0.0001693]
[1742159653654,0.85801498,83117.0,83116.0,0.0001693]
[1742159659432,0.57612269,83117.0,83116.0,0.0001693]
[1742159659662,0.56395875,83117.0,83116.0,0.0001693]
[1742159659870,0.34056844,83117.0,83116.0,0.0001693]
[1742159660072,0.35259944,83117.0,83116.0,0.0001693]
[1742159660514,0.35035204,83117.0,83116.0,0.0001693]
[1742159660740,0.34735204,83117.0,83116.0,0.0001693]
[1742159661033,0.34935204,83117.0,83116.0,0.0001693]
[1742159662769,0.3682109,83117.0,83116.0,0.0001693]
[1742159668049,0.3561799,83117.0,83116.0,0.0001693]
[1742159668906,0.3561799,83117.0,83116.0,0.0301693]
[1742159669293,0.3561799,83117.0,83116.0,0.2226713]
[1742159669521,0.3554273,83117.0,83116.0,0.3150023]
[1742159669737,0.33732104,83117.0,83116.0,0.3150023]
[1742159670065,0.33732104,83117.0,83116.0,1.8150023]
[1742159670196,0.33122324,83117.0,83116.0,1.8150023]
[1742159670401,0.33022324,83117.0,83116.0,1.8150023]
[1742159670815,0.32922324,83117.0,83116.0,1.8150023]
[1742159671501,0.0098729,83125.0,83124.0,0.204513]
[1742159671845,0.0058887,83125.0,83124.0,0.204513]
[1742159672104,0.32847064,83128.0,83127.0,0.204505]
[1742159674187,0.34732646,83128.0,83127.0,0.204505]
[1742159675556,0.34732646,83128.0,83127.0,0.284205]
[1742159676328,0.35321985,83128.0,83127.0,0.284205]
[1742159676710,0.00589339,83128.0,83127.0,0.284205]
[1742159677155,0.0003386,83133.0,83132.0,0.284193]
[1742159678091,0.0003386,83133.0,83132.0,0.331993]
[1742159678595,0.0003386,83133.0,83132.0,1.831993]
[1742159679722,0.0003386,83133.0,83132.0,1.84653385]
[1742159684029,6e-07,83133.0,83132.0,2.14653385]
[1742159689417,6e-07,83133.0,83132.0,2.20263385]
[1742159689960,6e-07,83133.0,83132.0,2.06683385]
[1742159690209,6e-07,83133.0,83132.0,2.20280315]
[1742159692095,6e-07,83133.0,83132.0,0.70280315]
[1742159696471,6e-07,83133.0,83132.0,0.56700315]
[1742159696772,6e-07,83133.0,83132.0,0.70280315]
[1742159700956,5.8e-07,83135.0,83134.0,0.583388]
[1742159701152,5.8e-07,83135.0,83134.0,0.59792885]
[1742159702232,5.8e-07,83135.0,83134.0,0.59992885]
[1742159702831,0.00033898,83135.0,83134.0,0.59992885]
[1742159703483,0.00033898,83135.0,83134.0,0.52102885]
[1742159703685,0.00033898,83135.0,83134.0,0.206488]
[1742159703845,0.08419158,83135.0,83134.0,0.002]
[1742159704056,0.09012974,83135.0,83134.0,0.206488]
[1742159704246,0.10215774,83135.0,83134.0,0.002]
[1742159704602,0.09012974,83135.0,83133.0,0.192462]
[1742159704825,0.0007526,83134.0,83133.0,0.20449]
[1742159705414,0.0007526,83134.0,83133.0,1.70449]
[1742159705627,0.08419158,83135.0,83134.0,0.013028]
[1742159706269,0.00109158,83135.0,83134.0,0.012028]
[1742159706659,0.00033898,83135.0,83134.0,0.012028]
[1742159706882,0.00109158,83135.0,83134.0,0.012028]
[1742159707857,0.00033898,83135.0,83134.0,0.012028]
[1742159708247,0.00109158,83135.0,83134.0,0.012028]
[1742159708761,0.00109158,83135.0,83134.0,1.512028]
[1742159709180,0.00109158,83135.0,83134.0,1.514028]
[1742159709828,0.01994438,83135.0,83134.0,1.502]
[1742159710025,0.01994438,83135.0,83134.0,0.002]
[1742159710226,0.02586906,83135.0,83134.0,0.002]
[1742159710609,0.02586906,83135.0,83134.0,0.014028]
[1742159710823,0.00701626,83135.0,83134.0,0.002]
[1742159711764,0.29460226,83135.0,83134.0,0.002]
[1742159712526,0.2052426,83133.0,83132.0,0.0001693]
[1742159712708,0.53371324,83133.0,83132.0,0.0001693]
[1742159712909,0.53963792,83133.0,83132.0,0.0001693]
[1742159713808,0.55849287,83133.0,83132.0,0.0001693]
[1742159715703,0.204503,83129.0,83122.0,0.0061953]
[1742159715864,0.0007526,83123.0,83116.0,0.2226683]
[1742159716222,0.0007526,83117.0,83116.0,0.2346993]
[1742159716663,0.0007526,83117.0,83116.0,0.2226683]
[1742159716877,0.0007526,83117.0,83116.0,1.7346993]
[1742159718888,0.0007526,83117.0,83116.0,1.7366993]
[1742159720559,0.01960822,83117.0,83116.0,1.7366993]
[1742159721453,0.01960822,83117.0,83116.0,1.73623876]
[1742159727253,0.01960822,83117.0,83116.0,1.73640796]
[1742159736752,0.01960822,83117.0,83116.0,0.23640796]
[1742159737128,0.03163922,83117.0,83116.0,0.03187796]
[1742159737311,0.23002139,83117.0,83116.0,0.03187796]
[1742159738958,0.2419421,83117.0,83116.0,0.03187796]
[1742159739231,0.2419421,83117.0,83116.0,0.02987796]
[1742159739392,0.2419421,83117.0,83116.0,0.03187796]
[1742159740208,0.57041274,83117.0,83116.0,0.03187796]
[1742159740466,0.62875712,83117.0,83116.0,0.03187796]
[1742159740631,0.97825712,83117.0,83116.0,0.03187796]
[1742159740837,0.97859552,83117.0,83116.0,0.03187796]
[1742159741443,0.97859552,83117.0,83116.0,0.02987796]
[1742159741806,0.97859552,83117.0,83116.0,0.03087796]
[1742159742187,0.97859552,83117.0,83116.0,0.02987796]
[1742159742596,0.98159552,83117.0,83116.0,0.02987796]
[1742159743197,0.46439221,83117.0,83116.0,0.02987796]
[1742159743408,0.33769221,83117.0,83116.0,0.02987796]
[1742159743612,0.34144481,83117.0,83116.0,0.02987796]
[1742159743802,0.3603035,83117.0,83116.0,0.02987796]
[1742159744761,0.33844481,83117.0,83116.0,0.02987796]
[1742159744972,0.33769221,83117.0,83116.0,0.02987796]
[1742159745137,0.33844481,83117.0,83116.0,0.02987796]
[1742159745545,0.33544481,83117.0,83116.0,0.02987796]
[1742159745863,0.33644481,83117.0,83116.0,0.02987796]
[1742159746071,0.33744481,83117.0,83116.0,0.02987796]
[1742159746877,0.33669221,83117.0,83116.0,0.02987796]
[1742159747075,0.33669221,83117.0,83116.0,0.22237996]
[1742159747416,0.33744481,83117.0,83116.0,0.02987796]
[1742159747832,0.35630258,83117.0,83116.0,0.04190896]
[1742159748051,0.35630258,83117.0,83116.0,0.02987796]
[1742159749631,0.35554998,83117.0,83116.0,0.02987796]
[1742159749830,0.35630258,83117.0,83116.0,0.02987796]
[1742159752348,0.35554998,83117.0,83116.0,0.02987796]
[1742159752551,0.35630258,83117.0,83116.0,0.02987796]
[1742159752749,0.35554998,83117.0,83116.0,0.02987796]
[1742159752961,0.35630258,83117.0,83116.0,0.02987796]
[1742159753329,0.33744481,83117.0,83116.0,0.02987796]
[1742159753610,0.33744481,83117.0,83109.0,0.0003384]
[1742159753611,0.32753695,83114.0,83109.0,0.0003384]
[1742159753797,0.32753695,83114.0,83081.0,0.0001693]
[1742159753798,0.6323246,83100.0,83081.0,0.0001693]
[1742159754426,0.63798939,83100.0,83081.0,0.0001693]
[1742159755380,0.64307866,83100.0,83081.0,0.0001693]
[1742159755582,0.64807866,83100.0,83081.0,0.0001693]
[1742159756500,0.78883866,83100.0,83081.0,0.0001693]
[1742159757446,0.79786644,83100.0,83081.0,0.0001693]
[1742159758840,0.79711384,83100.0,83081.0,0.0001693]
[1742159759036,0.79786644,83100.0,83081.0,0.0001693]
[1742159759781,1.12540339,83100.0,83081.0,0.0001693]
[1742159760648,1.12540339,83100.0,83071.0,0.0008]
[1742159760649,0.127,83080.0,83071.0,0.0008]
[1742159760902,0.012043,83033.0,83020.0,0.012045]
[1742159761074,0.012043,83033.0,83015.0,0.0001692]
[1742159761075,0.5521066,83026.0,83025.0,7.7e-07]
[1742159761306,0.5521066,83026.0,83015.0,0.0001692]
[1742159761307,0.5055176,83022.0,83021.0,7.7e-07]
[1742159761750,0.00636313,83022.0,83021.0,0.01204577]
[1742159762079,0.00636313,83022.0,83021.0,7.7e-07]
[1742159762286,0.0007526,83016.0,83015.0,0.0001692]
[1742159762473,0.0060624,83016.0,83015.0,0.0001692]
[1742159762912,0.0181074,83016.0,83015.0,0.00058225]
[1742159763286,0.2108404,83016.0,83015.0,0.00058225]
[1742159765361,0.21234632,83016.0,83015.0,0.00058225]
[1742159766126,0.53988327,83016.0,83015.0,0.00058225]
[1742159766475,0.53837735,83016.0,83015.0,0.00058225]
[1742159766630,0.83837735,83016.0,83015.0,0.00058225]
[1742159767221,0.84037735,83016.0,83015.0,0.00058225]
[1742159767714,0.83837735,83016.0,83015.0,0.00058225]
[1742159768098,0.84437735,83016.0,83015.0,0.00058225]
[1742159768305,0.84237735,83016.0,83015.0,0.00058225]
[1742159768610,0.84637735,83016.0,83015.0,0.00058225]
[1742159769749,0.012048,83001.0,82997.0,0.01117873]
[1742159769957,0.012048,83001.0,82997.0,0.01128713]
[1742159770176,0.012047,83007.0,82997.0,0.01128713]
[1742159770177,0.0007526,82999.0,82998.0,0.012048]
[1742159770382,0.00606263,83000.0,82999.0,0.012048]
[1742159770555,0.0099287,83006.0,83005.0,0.204806]
[1742159770793,0.0007526,83012.0,83011.0,0.012046]
[1742159770992,0.0007526,83012.0,83011.0,0.204791]
[1742159771127,0.00585871,83012.0,83011.0,0.204791]
[1742159771648,0.0007526,83009.0,83008.0,0.012047]
[1742159772647,0.0007526,83010.0,83009.0,0.204796]
[1742159773041,0.32828955,83016.0,83015.0,0.204782]
[1742159773249,0.32828955,83016.0,83015.0,0.012046]
[1742159773469,0.3333983,83016.0,83015.0,0.012046]
[1742159773666,0.35227885,83016.0,83015.0,0.012046]
[1742159773840,0.3464175,83016.0,83015.0,0.012046]
[1742159774197,0.01963315,83016.0,83015.0,0.012046]
[1742159774566,0.01888055,83016.0,83015.0,0.012046]
[1742159774905,0.01988055,83016.0,83015.0,0.012046]
[1742159775081,0.01888055,83016.0,83015.0,0.012046]
[1742159776799,0.0106391,83025.0,83024.0,0.204759]
[1742159777048,0.52021295,83041.0,83039.0,0.192679]
[1742159777049,0.32753695,83041.0,83039.0,0.192679]
[1742159777274,0.32753695,83041.0,83040.0,0.012042]
[1742159777650,0.012041,83049.0,83040.0,0.012042]
[1742159777651,0.32753695,83051.0,83046.0,0.012041]
[1742159777854,0.32753695,83051.0,83045.0,0.204706]
[1742159777981,0.0099438,83049.0,83046.0,0.0001084]
[1742159778205,0.32753695,83051.0,83046.0,0.0001084]
[1742159778403,0.62753695,83051.0,83046.0,0.0001084]
[1742159778847,0.62753695,83051.0,83045.0,0.2028144]
[1742159779045,0.0007526,83046.0,83045.0,0.20285572]
[1742159779242,0.001,83049.0,83047.0,0.204702]
[1742159779563,0.001,83049.0,83047.0,0.1470635]
[1742159779797,0.32753695,83051.0,83047.0,0.14536626]
[1742159780125,0.32753695,83051.0,83049.0,0.192656]
[1742159780331,0.32753695,83051.0,83049.0,0.012041]
[1742159780532,0.32853695,83051.0,83049.0,0.012041]
[1742159780735,0.32853695,83051.0,83049.0,0.204697]
[1742159781143,0.32953695,83051.0,83049.0,0.204697]
[1742159781351,0.00510875,83050.0,83047.0,0.204702]
[1742159781546,0.00510875,83050.0,83048.0,0.012041]
[1742159781754,0.00510875,83050.0,83049.0,0.204698]
[1742159783156,0.00610875,83050.0,83049.0,0.204698]
[1742159783771,0.00610875,83050.0,83049.0,0.199978]
[1742159784117,0.00710875,83050.0,83049.0,0.199978]
[1742159784318,0.00610875,83050.0,83049.0,0.199978]
[1742159784520,0.0007526,83046.0,83045.0,0.20285572]
[1742159785119,0.00590738,83046.0,83045.0,0.20285572]
[1742159785512,0.00515478,83046.0,83045.0,0.20285572]
[1742159785709,0.0007526,83046.0,83045.0,0.20285572]
[1742159785928,0.00590738,83046.0,83045.0,0.20285572]
[1742159786646,0.90880533,83046.0,83045.0,4.132e-05]
[1742159788160,0.91280533,83046.0,83045.0,4.132e-05]
[1742159788826,0.91580533,83046.0,83045.0,4.132e-05]
[1742159789454,0.91614433,83046.0,83045.0,4.132e-05]
[1742159789638,0.0007526,83022.0,83017.0,0.20328781]
[1742159789842,0.0007526,83019.0,83017.0,0.20328781]
[1742159790131,0.00496624,83018.0,83017.0,0.20328781]
[1742159790464,0.012045,83016.0,83006.0,0.012047]
[1742159790654,0.012045,83016.0,83008.0,0.204797]
[1742159790831,0.012045,83016.0,83008.0,0.192751]
[1742159791031,0.01699954,83016.0,83008.0,0.192751]
[1742159791766,0.01699954,83016.0,83015.0,0.0021694]
[1742159791981,0.00495454,83016.0,83015.0,0.0021694]
[1742159792244,0.32753695,83037.0,83025.0,0.204757]
[1742159792400,0.204729,83036.0,83025.0,0.204757]
[1742159792626,0.204729,83036.0,83028.0,0.204749]
[1742159792811,0.33957895,83037.0,83032.0,0.192696]
[1742159793140,0.0098315,83036.0,83032.0,0.192696]
[1742159793356,0.32753695,83037.0,83032.0,0.204739]
[1742159793553,0.32753695,83037.0,83034.0,0.192691]
[1742159793787,0.32753695,83037.0,83029.0,0.012043]
[1742159793788,0.012045,83019.0,82981.0,0.0507]
[1742159794038,0.204778,83016.0,82991.0,0.19359]
[1742159794240,0.50628405,83016.0,83015.0,0.0001694]
[1742159794538,0.504778,83016.0,83015.0,0.0001694]
[1742159795773,0.505778,83016.0,83015.0,0.0001694]
[1742159797439,0.507778,83016.0,83015.0,0.0001694]
[1742159797856,0.8400768,83016.0,83015.0,0.0001694]
[1742159799409,0.4732188,83016.0,83015.0,0.0001694]
[1742159799655,0.3352988,83016.0,83015.0,0.0122154]
[1742159799860,0.3352988,83016.0,83015.0,0.01084064]
[1742159800007,0.3352988,83016.0,83012.0,0.204788]
[1742159800210,0.3352988,83016.0,83015.0,0.012046]
[1742159800668,0.32753695,83016.0,83015.0,0.012046]
[1742159800874,0.33228413,83016.0,83013.0,0.204786]
[1742159801073,0.33328413,83016.0,83013.0,0.204786]
[1742159801229,0.33328413,83016.0,83012.0,0.012046]
[1742159801579,0.33228413,83016.0,83015.0,0.0001694]
[1742159801737,0.35116551,83016.0,83015.0,0.0001694]
[1742159802908,0.33228413,83016.0,83015.0,0.0001694]
[1742159804225,0.42572913,83016.0,83015.0,0.0001694]
[1742159804813,0.42572913,83016.0,83015.0,0.0301694]
[1742159805349,0.42772913,83016.0,83015.0,0.0301694]
[1742159805561,0.42872913,83016.0,83015.0,0.0301694]
[1742159805839,0.42672913,83016.0,83015.0,0.0301694]
[1742159806158,0.44761094,83016.0,83015.0,0.0301694]
[1742159806956,0.74761094,83016.0,83015.0,0.0301694]
[1742159807202,0.72872913,83016.0,83015.0,0.0301694]
[1742159808980,0.78504913,83016.0,83015.0,0.0301694]
[1742159809554,0.48504913,83016.0,83015.0,0.0301694]
[1742159809756,0.48504913,83016.0,83015.0,0.02893211]
[1742159813299,0.48504913,83016.0,83015.0,0.02910151]
[1742159813697,0.48538793,83016.0,83015.0,0.02910151]
[1742159814538,0.48550793,83016.0,83015.0,0.02910151]
[1742159814773,0.36654971,83016.0,83015.0,0.02910151]
[1742159817019,0.33562293,83016.0,83015.0,0.02910151]
[1742159817802,0.33562293,83016.0,83015.0,0.04114751]
[1742159818010,0.33087575,83016.0,83015.0,0.04114751]
[1742159818206,0.33260985,83016.0,83015.0,0.02910151]
[1742159818415,0.0050729,83016.0,83015.0,0.04114751]
[1742159818613,0.0080729,83016.0,83015.0,0.04114751]
[1742159818826,0.0033388,83016.0,83015.0,0.0300119]
[1742159819025,0.0080729,83016.0,83015.0,0.0300119]
[1742159819231,0.0013388,83016.0,83015.0,0.0300119]
[1742159819381,0.0050729,83016.0,83015.0,0.0300119]
[1742159819995,0.0003388,83016.0,83015.0,0.0300119]
[1742159821422,0.0003388,83016.0,83015.0,0.0300119]
[1742159821639,0.0003388,83016.0,83015.0,0.0310119]
[1742159821816,0.0003388,83016.0,83015.0,0.1536119]
[1742159822016,0.0003388,83016.0,83015.0,0.1556119]
[1742159822225,0.0003388,83016.0,83015.0,0.15681629]
[1742159822463,0.0003388,83016.0,83015.0,0.16815275]
[1742159822683,0.0003388,83016.0,83015.0,1.66935704]
[1742159822886,0.0003388,83016.0,83015.0,1.80883275]
[1742159829734,0.0003388,83016.0,83015.0,1.5209659]
[1742159829969,0.2051168,83016.0,83015.0,0.0209659]
[1742159830193,0.20986604,83016.0,83015.0,0.0209659]
[1742159830367,0.00508804,83016.0,83015.0,0.0209659]
[1742159830748,0.0003388,83016.0,83015.0,0.0209659]
[1742159830948,0.0003388,83016.0,83015.0,0.2137019]
[1742159831172,0.00508804,83016.0,83015.0,0.2137019]
[1742159832221,0.41332499,83016.0,83015.0,0.0209659]
[1742159832550,0.47196999,83016.0,83015.0,0.0209659]
[1742159834257,0.47196999,83016.0,83015.0,0.0189659]
[1742159834630,0.49085231,83016.0,83015.0,0.0189659]
[1742159834793,0.49085231,83016.0,83015.0,0.0179659]
[1742159835216,0.49285231,83016.0,83015.0,0.0189659]
[1742159835620,0.49285231,83016.0,83015.0,0.0179659]
[1742159835827,0.49385231,83016.0,83015.0,0.0179659]
[1742159838433,0.47496999,83016.0,83015.0,0.0179659]
[1742159841705,0.49385283,83016.0,83015.0,0.0179659]
[1742159842847,0.47496999,83016.0,83015.0,0.0179659]
[1742159844788,0.47496999,83016.0,82997.0,0.01134823]
[1742159844789,0.329523,82998.0,82997.0,0.01134823]
[1742159844992,0.77861405,82998.0,82997.0,0.01147227]
[1742159845197,0.78333712,82998.0,82997.0,0.01147227]
[1742159845708,0.79532722,82998.0,82997.0,0.01147227]
[1742159845890,0.814212,82998.0,82997.0,0.01147227]
[1742159846028,0.8022219,82998.0,82997.0,0.01247227]
[1742159846230,0.81405952,82998.0,82997.0,0.01147227]
[1742159846622,0.81605952,82998.0,82997.0,0.01147227]
[1742159847101,0.79717474,82998.0,82997.0,0.01147227]
[1742159847545,0.79917474,82998.0,82997.0,0.01147227]
[1742159848047,0.79517474,82998.0,82997.0,0.01147227]
[1742159848249,0.80217474,82998.0,82997.0,0.01147227]
[1742159848681,0.65887712,82998.0,82997.0,0.01147227]
[1742159848890,0.66387712,82998.0,82997.0,0.01147227]
[1742159849090,0.68105116,82998.0,82997.0,0.01147227]
[1742159849243,0.67605116,82998.0,82997.0,0.01147227]
[1742159849565,0.67905116,82998.0,82997.0,0.01147227]
[1742159850156,0.67605116,82998.0,82997.0,0.01147227]
[1742159850546,0.69493737,82998.0,82997.0,0.01147227]
[1742159850933,0.68993737,82998.0,82997.0,0.01147227]
[1742159851316,0.68076333,82998.0,82997.0,0.01147227]
[1742159851526,0.69311846,82998.0,82997.0,0.01147227]